[Event "Titled Tuesday Blitz April 26 Early 2022"]
[White "Sovetbekova, Nurai"]
[Black "Buscar, Michael"]
[WhiteFideId "13801910"]
[BlackFideId "2603616"]
[WhiteElo "1538"]
[BlackElo "2010"]
[Result "0-1"]
[Round "11"]
[TimeControl "180+1"]
[Date "2022.04.26"]
[WhiteClock "0:00:36"]
[BlackClock "0:01:14"]

1. d4 {[%clk 0:03:00]}  d5 {[%clk 0:02:58]} 2. c4 {[%clk 0:03:00]}  e6 {[%clk 0:02:57]} 3. Nf3 {[%clk 0:02:59]}  c5 {[%clk 0:02:57]} 4. cxd5 {[%clk 0:02:56]}  exd5 {[%clk 0:02:57]} 5. g3 {[%clk 0:02:57]}  Nc6 {[%clk 0:02:57]} 6. Bg2 {[%clk 0:02:56]}  Nf6 {[%clk 0:02:58]} 7. O-O {[%clk 0:02:56]}  Be7 {[%clk 0:02:59]} 8. Nc3 {[%clk 0:02:57]}  O-O {[%clk 0:03:00]} 9. Bf4 {[%clk 0:02:48]}  c4 {[%clk 0:02:59]} 10. b3 {[%clk 0:02:42]}  Qa5 {[%clk 0:02:58]} 11. Rc1 {[%clk 0:02:27]}  Ba3 {[%clk 0:02:55]} 12. Rc2 {[%clk 0:02:24]}  Bf5 {[%clk 0:02:51]} 13. bxc4 {[%clk 0:02:11]}  Bxc2 {[%clk 0:02:41]} 14. Qxc2 {[%clk 0:02:12]}  dxc4 {[%clk 0:02:35]} 15. e4 {[%clk 0:02:07]}  Bb4 {[%clk 0:02:33]} 16. Bd2 {[%clk 0:02:03]}  Rfe8 {[%clk 0:02:25]} 17. e5 {[%clk 0:02:01]}  Nd7 {[%clk 0:02:08]} 18. Ng5 {[%clk 0:01:57]}  g6 {[%clk 0:02:06]} 19. Bd5 {[%clk 0:01:54]}  Re7 {[%clk 0:01:57]} 20. e6 {[%clk 0:01:19]}  Nxd4 {[%clk 0:01:43]} 21. exf7+ {[%clk 0:01:17]}  Kg7 {[%clk 0:01:43]} 22. Qb2 {[%clk 0:01:06]}  Nf6 {[%clk 0:01:23]} 23. Kg2 {[%clk 0:00:49]}  Bxc3 {[%clk 0:01:17]} 24. Bxc3 {[%clk 0:00:48]}  Qxd5+ {[%clk 0:01:17]} 25. Kg1 {[%clk 0:00:36]}  Ne2+ {[%clk 0:01:14]} 0-1


[Site "https://www.chess.com"]

[Event "Titled Tuesday Blitz April 26 Early 2022"]
[White "Subelj, Jan"]
[Black "Csonka, Balazs"]
[WhiteFideId "14618583"]
[BlackFideId "742910"]
[WhiteElo "2306"]
[BlackElo "2404"]
[Result "1-0"]
[Round "11"]
[TimeControl "180+1"]
[Date "2022.04.26"]
[WhiteClock "0:01:51"]
[BlackClock "0:00:16"]

1. d4 {[%clk 0:02:58]}  Nf6 {[%clk 0:02:59]} 2. Nf3 {[%clk 0:02:57]}  d5 {[%clk 0:02:54]} 3. Bf4 {[%clk 0:02:56]}  Bf5 {[%clk 0:02:44]} 4. c4 {[%clk 0:02:55]}  e6 {[%clk 0:02:44]} 5. Qb3 {[%clk 0:02:54]}  dxc4 {[%clk 0:02:44]} 6. Qxb7 {[%clk 0:02:49]}  Be4 {[%clk 0:02:44]} 7. Qxc7 {[%clk 0:02:49]}  Bb4+ {[%clk 0:02:40]} 8. Nc3 {[%clk 0:02:48]}  Qxc7 {[%clk 0:02:30]} 9. Bxc7 {[%clk 0:02:47]}  Nd5 {[%clk 0:02:30]} 10. Nd2 {[%clk 0:02:29]}  Nxc3 {[%clk 0:01:43]} 11. bxc3 {[%clk 0:02:27]}  Bxc3 {[%clk 0:01:40]} 12. Rc1 {[%clk 0:02:27]}  Bb4 {[%clk 0:01:09]} 13. Rxc4 {[%clk 0:02:21]}  Na6 {[%clk 0:01:04]} 14. Rxb4 {[%clk 0:02:17]}  Nxb4 {[%clk 0:01:05]} 15. Nxe4 {[%clk 0:02:18]}  Nc2+ {[%clk 0:00:54]} 16. Kd2 {[%clk 0:02:15]}  Nxd4 {[%clk 0:00:54]} 17. e3 {[%clk 0:02:16]}  Nf5 {[%clk 0:00:35]} 18. Bb5+ {[%clk 0:02:09]}  Ke7 {[%clk 0:00:35]} 19. g4 {[%clk 0:02:09]}  Rac8 {[%clk 0:00:35]} 20. Rc1 {[%clk 0:02:09]}  Nh4 {[%clk 0:00:21]} 21. Bd6+ {[%clk 0:01:54]}  Kd8 {[%clk 0:00:21]} 22. Nc5 {[%clk 0:01:54]}  Rb8 {[%clk 0:00:16]} 23. Bxb8 {[%clk 0:01:51]} 1-0


[Site "https://www.chess.com"]

[Event "Titled Tuesday Blitz April 26 Early 2022"]
[White "Svane, Rasmus"]
[Black "Urazayev, Arystanbek"]
[WhiteFideId "4657101"]
[BlackFideId "13709810"]
[WhiteElo "2645"]
[BlackElo "2422"]
[Result "1/2-1/2"]
[Round "11"]
[TimeControl "180+1"]
[Date "2022.04.26"]
[WhiteClock "0:00:21"]
[BlackClock "0:01:37"]

1. Nf3 {[%clk 0:03:00]}  Nf6 {[%clk 0:02:59]} 2. g3 {[%clk 0:03:01]}  d5 {[%clk 0:02:59]} 3. Bg2 {[%clk 0:03:01]}  e6 {[%clk 0:03:00]} 4. O-O {[%clk 0:03:01]}  Be7 {[%clk 0:03:00]} 5. c4 {[%clk 0:03:01]}  O-O {[%clk 0:03:01]} 6. b3 {[%clk 0:03:01]}  a5 {[%clk 0:02:59]} 7. Nc3 {[%clk 0:03:01]}  c6 {[%clk 0:03:00]} 8. d4 {[%clk 0:02:54]}  b6 {[%clk 0:02:55]} 9. Nd2 {[%clk 0:02:55]}  b5 {[%clk 0:02:54]} 10. cxb5 {[%clk 0:02:49]}  cxb5 {[%clk 0:02:55]} 11. Nxb5 {[%clk 0:02:50]}  Qb6 {[%clk 0:02:55]} 12. a4 {[%clk 0:02:46]}  Nc6 {[%clk 0:02:55]} 13. Nb1 {[%clk 0:02:26]}  Ba6 {[%clk 0:02:53]} 14. N1c3 {[%clk 0:02:23]}  Bb4 {[%clk 0:02:51]} 15. Be3 {[%clk 0:01:38]}  Ng4 {[%clk 0:02:49]} 16. Rb1 {[%clk 0:01:33]}  Nxe3 {[%clk 0:02:45]} 17. fxe3 {[%clk 0:01:34]}  Rac8 {[%clk 0:02:28]} 18. Kh1 {[%clk 0:01:34]}  Na7 {[%clk 0:02:24]} 19. Rc1 {[%clk 0:01:09]}  Nxb5 {[%clk 0:02:17]} 20. Nxb5 {[%clk 0:01:10]}  Bxb5 {[%clk 0:02:17]} 21. Rxc8 {[%clk 0:01:05]}  Rxc8 {[%clk 0:02:16]} 22. axb5 {[%clk 0:01:06]}  Qxb5 {[%clk 0:02:15]} 23. e4 {[%clk 0:01:06]}  dxe4 {[%clk 0:02:06]} 24. Bxe4 {[%clk 0:01:07]}  g6 {[%clk 0:02:05]} 25. Qd3 {[%clk 0:00:49]}  Qxd3 {[%clk 0:02:03]} 26. Bxd3 {[%clk 0:00:50]}  Rc3 {[%clk 0:02:02]} 27. Rb1 {[%clk 0:00:50]}  Ba3 {[%clk 0:02:00]} 28. Kg2 {[%clk 0:00:48]}  Rc1 {[%clk 0:02:00]} 29. Rxc1 {[%clk 0:00:48]}  Bxc1 {[%clk 0:02:00]} 30. Kf3 {[%clk 0:00:49]}  Kf8 {[%clk 0:02:00]} 31. Bb5 {[%clk 0:00:45]}  Ke7 {[%clk 0:01:59]} 32. Ke4 {[%clk 0:00:46]}  Kd6 {[%clk 0:01:56]} 33. Kd3 {[%clk 0:00:43]}  Ba3 {[%clk 0:01:52]} 34. e4 {[%clk 0:00:42]}  e5 {[%clk 0:01:50]} 35. Bc4 {[%clk 0:00:38]}  f6 {[%clk 0:01:48]} 36. Bg8 {[%clk 0:00:38]}  h6 {[%clk 0:01:48]} 37. Bf7 {[%clk 0:00:37]}  exd4 {[%clk 0:01:44]} 38. Kxd4 {[%clk 0:00:29]}  g5 {[%clk 0:01:43]} 39. h4 {[%clk 0:00:21]}  gxh4 {[%clk 0:01:42]} 40. gxh4 {[%clk 0:00:22]}  Bb2+ {[%clk 0:01:42]} 41. Kc4 {[%clk 0:00:20]}  Ke5 {[%clk 0:01:41]} 42. Bg6 {[%clk 0:00:20]}  Bc1 {[%clk 0:01:38]} 43. h5 {[%clk 0:00:20]}  Bd2 {[%clk 0:01:37]} 44. Kb5 {[%clk 0:00:19]}  Be1 {[%clk 0:01:37]} 45. Kc4 {[%clk 0:00:20]}  Bd2 {[%clk 0:01:38]} 46. Bf5 {[%clk 0:00:20]}  Be1 {[%clk 0:01:38]} 47. Kd3 {[%clk 0:00:21]}  Bb4 {[%clk 0:01:37]} 48. Kc4 {[%clk 0:00:21]}  Be1 {[%clk 0:01:37]} 49. Kb5 {[%clk 0:00:21]}  Bb4 {[%clk 0:01:37]} 50. Kc6 {[%clk 0:00:22]}  Be1 {[%clk 0:01:37]} 51. Kc5 {[%clk 0:00:21]}  Bd2 {[%clk 0:01:37]} 52. Kc4 {[%clk 0:00:21]}  Be1 {[%clk 0:01:37]} 1/2-1/2


[Site "https://www.chess.com"]

[Event "Titled Tuesday Blitz April 26 Early 2022"]
[White "Swiercz, Dariusz"]
[Black "Janaszak, Dawid"]
[WhiteFideId "1126881"]
[BlackFideId "1119206"]
[WhiteElo "2627"]
[BlackElo "2199"]
[Result "1-0"]
[Round "11"]
[TimeControl "180+1"]
[Date "2022.04.26"]
[WhiteClock "0:00:17"]
[BlackClock "0:00:14"]

1. e4 {[%clk 0:03:00]}  c5 {[%clk 0:02:59]} 2. Nf3 {[%clk 0:03:01]}  Nc6 {[%clk 0:02:59]} 3. c3 {[%clk 0:02:58]}  e5 {[%clk 0:02:58]} 4. Bc4 {[%clk 0:02:55]}  Be7 {[%clk 0:02:51]} 5. d4 {[%clk 0:02:51]}  cxd4 {[%clk 0:02:50]} 6. cxd4 {[%clk 0:02:52]}  exd4 {[%clk 0:02:51]} 7. Nxd4 {[%clk 0:02:52]}  Nf6 {[%clk 0:02:50]} 8. Nc3 {[%clk 0:02:52]}  O-O {[%clk 0:02:49]} 9. O-O {[%clk 0:02:52]}  Nxe4 {[%clk 0:02:31]} 10. Nxe4 {[%clk 0:02:38]}  d5 {[%clk 0:02:31]} 11. Nxc6 {[%clk 0:02:38]}  bxc6 {[%clk 0:02:30]} 12. Bd3 {[%clk 0:02:38]}  dxe4 {[%clk 0:02:28]} 13. Bxe4 {[%clk 0:02:38]}  Ba6 {[%clk 0:02:09]} 14. Be3 {[%clk 0:01:10]}  Bxf1 {[%clk 0:02:07]} 15. Qxf1 {[%clk 0:01:11]}  Bf6 {[%clk 0:02:03]} 16. Rd1 {[%clk 0:01:08]}  Qc7 {[%clk 0:01:59]} 17. b3 {[%clk 0:01:00]}  Rfe8 {[%clk 0:01:57]} 18. Qc4 {[%clk 0:00:57]}  Rac8 {[%clk 0:01:49]} 19. Rc1 {[%clk 0:00:55]}  c5 {[%clk 0:01:36]} 20. g3 {[%clk 0:00:51]}  Bd4 {[%clk 0:01:28]} 21. Bxh7+ {[%clk 0:00:30]}  Kxh7 {[%clk 0:01:27]} 22. Bxd4 {[%clk 0:00:30]}  Qa5 {[%clk 0:01:15]} 23. Bc3 {[%clk 0:00:23]}  Qxa2 {[%clk 0:01:11]} 24. Qxf7 {[%clk 0:00:17]}  Kh6 {[%clk 0:00:16]} 25. Bxg7+ {[%clk 0:00:17]}  Kg5 {[%clk 0:00:14]} 26. Qf6+ {[%clk 0:00:17]}  Kg4 {[%clk 0:00:14]} 27. Rc4+ {[%clk 0:00:17]} 1-0


[Site "https://www.chess.com"]

[Event "Titled Tuesday Blitz April 26 Early 2022"]
[White "Terry, Renato"]
[Black "Leiva, Gianmarco"]
[WhiteFideId "3803457"]
[BlackFideId "3804399"]
[WhiteElo "2577"]
[BlackElo "2323"]
[Result "1-0"]
[Round "11"]
[TimeControl "180+1"]
[Date "2022.04.26"]
[WhiteClock "0:00:45"]
[BlackClock "0:00:01"]

1. e4 {[%clk 0:03:00]}  c6 {[%clk 0:02:59]} 2. Nc3 {[%clk 0:02:56]}  d5 {[%clk 0:02:59]} 3. Nf3 {[%clk 0:02:57]}  dxe4 {[%clk 0:02:59]} 4. Nxe4 {[%clk 0:02:57]}  Nf6 {[%clk 0:03:00]} 5. Ng3 {[%clk 0:02:52]}  h5 {[%clk 0:02:59]} 6. d3 {[%clk 0:02:49]}  h4 {[%clk 0:02:58]} 7. Ne4 {[%clk 0:02:49]}  Nxe4 {[%clk 0:02:47]} 8. dxe4 {[%clk 0:02:50]}  Qxd1+ {[%clk 0:02:48]} 9. Kxd1 {[%clk 0:02:51]}  Bg4 {[%clk 0:02:44]} 10. h3 {[%clk 0:02:44]}  Bxf3+ {[%clk 0:02:37]} 11. gxf3 {[%clk 0:02:45]}  e5 {[%clk 0:02:37]} 12. f4 {[%clk 0:02:45]}  Bc5 {[%clk 0:02:37]} 13. Ke2 {[%clk 0:02:41]}  exf4 {[%clk 0:01:49]} 14. Bxf4 {[%clk 0:02:42]}  f6 {[%clk 0:01:50]} 15. Bg2 {[%clk 0:02:37]}  Ke7 {[%clk 0:01:38]} 16. Rad1 {[%clk 0:02:36]}  Nd7 {[%clk 0:01:35]} 17. Bh2 {[%clk 0:02:29]}  g5 {[%clk 0:01:31]} 18. Bf3 {[%clk 0:02:29]}  Rad8 {[%clk 0:01:28]} 19. Bc7 {[%clk 0:02:26]}  Rc8 {[%clk 0:01:27]} 20. Bh2 {[%clk 0:02:22]}  Rcd8 {[%clk 0:01:25]} 21. Bc7 {[%clk 0:02:21]}  Rc8 {[%clk 0:01:26]} 22. Ba5 {[%clk 0:02:21]}  Ne5 {[%clk 0:01:23]} 23. Rd2 {[%clk 0:02:13]}  Nc4 {[%clk 0:01:21]} 24. Bc3 {[%clk 0:02:10]}  Nxd2 {[%clk 0:01:21]} 25. Bxd2 {[%clk 0:02:11]}  Rcd8 {[%clk 0:01:18]} 26. Bc1 {[%clk 0:02:02]}  a5 {[%clk 0:01:14]} 27. Bg4 {[%clk 0:02:00]}  Bd6 {[%clk 0:01:10]} 28. c3 {[%clk 0:01:54]}  Be5 {[%clk 0:01:08]} 29. Be3 {[%clk 0:01:54]}  Bf4 {[%clk 0:01:00]} 30. Bd4 {[%clk 0:01:48]}  b6 {[%clk 0:00:58]} 31. Bxb6 {[%clk 0:01:42]}  Rd2+ {[%clk 0:00:58]} 32. Kf3 {[%clk 0:01:43]}  Rxb2 {[%clk 0:00:57]} 33. Bxa5 {[%clk 0:01:39]}  c5 {[%clk 0:00:55]} 34. Rd1 {[%clk 0:01:37]}  Ra8 {[%clk 0:00:55]} 35. Rd7+ {[%clk 0:01:28]}  Ke8 {[%clk 0:00:55]} 36. Bc7 {[%clk 0:01:15]}  Rb7 {[%clk 0:00:56]} 37. Rh7 {[%clk 0:01:09]}  Rxa2 {[%clk 0:00:26]} 38. Rh8+ {[%clk 0:01:08]}  Kf7 {[%clk 0:00:25]} 39. Bxf4 {[%clk 0:01:08]}  Rb3 {[%clk 0:00:20]} 40. Be3 {[%clk 0:01:05]}  Rxc3 {[%clk 0:00:19]} 41. Rc8 {[%clk 0:01:05]}  c4 {[%clk 0:00:12]} 42. Rc7+ {[%clk 0:01:04]}  Kf8 {[%clk 0:00:09]} 43. Be6 {[%clk 0:01:04]}  Ra6 {[%clk 0:00:03]} 44. Bxc4 {[%clk 0:00:49]}  Ra4 {[%clk 0:00:03]} 45. Rf7+ {[%clk 0:00:49]}  Ke8 {[%clk 0:00:03]} 46. Bd5 {[%clk 0:00:50]}  Ra1 {[%clk 0:00:01]} 47. Rxf6 {[%clk 0:00:49]}  Rh1 {[%clk 0:00:02]} 48. Kg4 {[%clk 0:00:48]}  Rcc1 {[%clk 0:00:01]} 49. f3 {[%clk 0:00:46]}  Rce1 {[%clk 0:00:01]} 50. Bc5 {[%clk 0:00:46]}  Re2 {[%clk 0:00:01]} 51. Bc6+ {[%clk 0:00:44]}  Kd8 {[%clk 0:00:01]} 52. Bd6 {[%clk 0:00:45]}  Rg2+ {[%clk 0:00:01]} 53. Kf5 {[%clk 0:00:45]} 1-0


[Site "https://www.chess.com"]

[Event "Titled Tuesday Blitz April 26 Early 2022"]
[White "Torres Hernandez, Leslie Carolin"]
[Black "Samaganova, Aleksandra"]
[WhiteFideId "8400504"]
[BlackFideId "13800221"]
[WhiteElo "1920"]
[BlackElo "1859"]
[Result "0-1"]
[Round "11"]
[TimeControl "180+1"]
[Date "2022.04.26"]
[WhiteClock "0:00:21"]
[BlackClock "0:00:28"]

1. e4 {[%clk 0:03:00]}  c5 {[%clk 0:02:59]} 2. Nf3 {[%clk 0:02:56]}  e6 {[%clk 0:02:58]} 3. d4 {[%clk 0:02:55]}  cxd4 {[%clk 0:02:58]} 4. Nxd4 {[%clk 0:02:56]}  a6 {[%clk 0:02:58]} 5. c4 {[%clk 0:02:53]}  Qc7 {[%clk 0:02:59]} 6. Nc3 {[%clk 0:02:50]}  Nf6 {[%clk 0:02:58]} 7. Be2 {[%clk 0:02:49]}  Bb4 {[%clk 0:02:54]} 8. Qd3 {[%clk 0:02:48]}  d6 {[%clk 0:02:48]} 9. O-O {[%clk 0:02:44]}  Bxc3 {[%clk 0:02:47]} 10. bxc3 {[%clk 0:02:42]}  Nbd7 {[%clk 0:02:46]} 11. f3 {[%clk 0:02:31]}  Ne5 {[%clk 0:02:42]} 12. Qc2 {[%clk 0:02:21]}  O-O {[%clk 0:02:29]} 13. Qb3 {[%clk 0:02:17]}  Bd7 {[%clk 0:02:11]} 14. Be3 {[%clk 0:02:14]}  Rfc8 {[%clk 0:02:08]} 15. Rfc1 {[%clk 0:02:10]}  Nxc4 {[%clk 0:02:06]} 16. Bxc4 {[%clk 0:02:08]}  Qxc4 {[%clk 0:02:06]} 17. Qa3 {[%clk 0:01:57]}  d5 {[%clk 0:02:04]} 18. e5 {[%clk 0:01:50]}  Ne8 {[%clk 0:01:59]} 19. Qe7 {[%clk 0:01:41]}  Bc6 {[%clk 0:01:50]} 20. f4 {[%clk 0:01:12]}  Rc7 {[%clk 0:01:46]} 21. Qg5 {[%clk 0:01:04]}  Qd3 {[%clk 0:01:31]} 22. Kf2 {[%clk 0:00:51]}  Ba4 {[%clk 0:01:22]} 23. f5 {[%clk 0:00:40]}  exf5 {[%clk 0:01:09]} 24. Nxf5 {[%clk 0:00:38]}  f6 {[%clk 0:00:32]} 25. exf6 {[%clk 0:00:28]}  Nxf6 {[%clk 0:00:30]} 26. Bd4 {[%clk 0:00:21]}  Ne4+ {[%clk 0:00:28]} 0-1


[Site "https://www.chess.com"]

[Event "Titled Tuesday Blitz April 26 Early 2022"]
[White "Van den Dikkenberg, Erik"]
[Black "Menna Barreto, Felipe Kubiaki"]
[WhiteFideId "1005880"]
[BlackFideId "2119757"]
[WhiteElo "2118"]
[BlackElo "2261"]
[Result "1-0"]
[Round "11"]
[TimeControl "180+1"]
[Date "2022.04.26"]
[WhiteClock "0:03:00"]
[BlackClock "0:00:07"]

1. e4 {[%clk 0:03:00]}  c6 {[%clk 0:00:03]} 2. d4 {[%clk 0:03:00]}  d5 {[%clk 0:00:04]} 3. exd5 {[%clk 0:03:00]}  cxd5 {[%clk 0:00:04]} 4. Bd3 {[%clk 0:03:01]}  Nc6 {[%clk 0:00:05]} 5. c3 {[%clk 0:03:01]}  Nf6 {[%clk 0:00:05]} 6. f4 {[%clk 0:03:01]}  Bg4 {[%clk 0:00:05]} 7. Nf3 {[%clk 0:03:00]}  e6 {[%clk 0:00:06]} 8. O-O {[%clk 0:03:00]}  Be7 {[%clk 0:00:06]} 9. Nbd2 {[%clk 0:03:00]}  O-O {[%clk 0:00:06]} 10. Qe1 {[%clk 0:03:00]}  Bxf3 {[%clk 0:00:06]} 11. Nxf3 {[%clk 0:03:00]}  Rb8 {[%clk 0:00:07]} 12. Ne5 {[%clk 0:03:00]}  b5 {[%clk 0:00:07]} 13. Nxc6 {[%clk 0:03:00]} 1-0


[Site "https://www.chess.com"]

[Event "Titled Tuesday Blitz April 26 Early 2022"]
[White "Winkels, Marcel"]
[Black "Kaminski, Victor"]
[WhiteFideId "1003887"]
[BlackFideId "1131630"]
[WhiteElo "1900"]
[BlackElo "2181"]
[Result "0-1"]
[Round "11"]
[TimeControl "180+1"]
[Date "2022.04.26"]
[WhiteClock "0:00:32"]
[BlackClock "0:00:29"]

1. e4 {[%clk 0:03:00]}  c5 {[%clk 0:02:57]} 2. Nc3 {[%clk 0:02:59]}  Nc6 {[%clk 0:02:57]} 3. g3 {[%clk 0:03:00]}  h5 {[%clk 0:02:56]} 4. h4 {[%clk 0:02:56]}  d6 {[%clk 0:02:55]} 5. Bg2 {[%clk 0:02:56]}  e5 {[%clk 0:02:55]} 6. d3 {[%clk 0:02:55]}  Bg4 {[%clk 0:02:53]} 7. Nge2 {[%clk 0:02:48]}  Nd4 {[%clk 0:02:52]} 8. O-O {[%clk 0:02:44]}  Nf3+ {[%clk 0:02:50]} 9. Bxf3 {[%clk 0:02:37]}  Bxf3 {[%clk 0:02:51]} 10. Bg5 {[%clk 0:02:31]}  Be7 {[%clk 0:02:44]} 11. Bxe7 {[%clk 0:02:30]}  Nxe7 {[%clk 0:02:44]} 12. Qd2 {[%clk 0:02:27]}  Ng6 {[%clk 0:02:40]} 13. Qg5 {[%clk 0:02:26]}  Qxg5 {[%clk 0:02:39]} 14. hxg5 {[%clk 0:02:25]}  h4 {[%clk 0:02:40]} 15. Kh2 {[%clk 0:01:54]}  Rh5 {[%clk 0:01:58]} 16. Ng1 {[%clk 0:01:49]}  Bg4 {[%clk 0:01:53]} 17. f3 {[%clk 0:01:48]}  Be6 {[%clk 0:01:52]} 18. g4 {[%clk 0:01:48]}  Rh7 {[%clk 0:01:48]} 19. Nh3 {[%clk 0:01:46]}  Ke7 {[%clk 0:01:43]} 20. a3 {[%clk 0:01:45]}  Rb8 {[%clk 0:01:42]} 21. b4 {[%clk 0:01:44]}  Rc8 {[%clk 0:01:38]} 22. Rab1 {[%clk 0:01:43]}  cxb4 {[%clk 0:01:38]} 23. Nd5+ {[%clk 0:01:24]}  Bxd5 {[%clk 0:01:36]} 24. exd5 {[%clk 0:01:25]}  Rxc2+ {[%clk 0:01:35]} 25. Rf2 {[%clk 0:01:25]}  Rxf2+ {[%clk 0:01:22]} 26. Nxf2 {[%clk 0:01:24]}  Rh8 {[%clk 0:01:20]} 27. Rxb4 {[%clk 0:01:23]}  b6 {[%clk 0:01:20]} 28. Rc4 {[%clk 0:01:20]}  Kd7 {[%clk 0:01:17]} 29. Ne4 {[%clk 0:01:15]}  Ne7 {[%clk 0:01:13]} 30. Ra4 {[%clk 0:01:03]}  a5 {[%clk 0:01:12]} 31. Rc4 {[%clk 0:01:02]}  Nxd5 {[%clk 0:01:11]} 32. Nc3 {[%clk 0:00:50]}  Ne3 {[%clk 0:00:44]} 33. Re4 {[%clk 0:00:46]}  Nc2 {[%clk 0:00:41]} 34. a4 {[%clk 0:00:44]}  Nd4 {[%clk 0:00:41]} 35. Kg2 {[%clk 0:00:42]}  h3+ {[%clk 0:00:39]} 36. Kh1 {[%clk 0:00:39]}  Nxf3 {[%clk 0:00:37]} 37. g6 {[%clk 0:00:37]}  f6 {[%clk 0:00:33]} 38. Nd5 {[%clk 0:00:33]}  Ke6 {[%clk 0:00:29]} 39. Nxb6 {[%clk 0:00:32]}  Rb8 {[%clk 0:00:29]} 0-1


[Site "https://www.chess.com"]

[Event "Titled Tuesday Blitz April 26 Early 2022"]
[White "Yang, Kaiqi"]
[Black "Nozdrachev, Leonid"]
[WhiteFideId "8604398"]
[BlackFideId "24113433"]
[WhiteElo "2373"]
[BlackElo "2242"]
[Result "1-0"]
[Round "11"]
[TimeControl "180+1"]
[Date "2022.04.26"]
[WhiteClock "0:00:08"]
[BlackClock "0:00:01"]

1. d4 {[%clk 0:03:00]}  d6 {[%clk 0:02:56]} 2. Nf3 {[%clk 0:02:59]}  Nf6 {[%clk 0:02:52]} 3. g3 {[%clk 0:02:57]}  g6 {[%clk 0:02:52]} 4. Bg2 {[%clk 0:02:57]}  Bg7 {[%clk 0:02:51]} 5. O-O {[%clk 0:02:58]}  O-O {[%clk 0:02:51]} 6. c4 {[%clk 0:02:59]}  Nc6 {[%clk 0:02:50]} 7. Nc3 {[%clk 0:02:58]}  Bf5 {[%clk 0:02:49]} 8. Bg5 {[%clk 0:02:52]}  Ne4 {[%clk 0:02:48]} 9. Nxe4 {[%clk 0:02:51]}  Bxe4 {[%clk 0:02:48]} 10. d5 {[%clk 0:02:46]}  Na5 {[%clk 0:02:41]} 11. b3 {[%clk 0:02:43]}  c6 {[%clk 0:02:28]} 12. Rc1 {[%clk 0:02:27]}  Bb2 {[%clk 0:02:21]} 13. Bh6 {[%clk 0:02:12]}  Re8 {[%clk 0:02:20]} 14. Qd2 {[%clk 0:01:58]}  Bxc1 {[%clk 0:02:18]} 15. Rxc1 {[%clk 0:01:59]}  Rc8 {[%clk 0:02:10]} 16. Bh3 {[%clk 0:01:55]}  e6 {[%clk 0:01:51]} 17. Qd4 {[%clk 0:01:38]}  e5 {[%clk 0:01:25]} 18. Qxe4 {[%clk 0:01:35]}  f5 {[%clk 0:01:24]} 19. Qd3 {[%clk 0:01:16]}  Qf6 {[%clk 0:01:16]} 20. Ng5 {[%clk 0:01:01]}  c5 {[%clk 0:00:55]} 21. e4 {[%clk 0:00:53]}  b5 {[%clk 0:00:48]} 22. Ne6 {[%clk 0:00:38]}  bxc4 {[%clk 0:00:44]} 23. bxc4 {[%clk 0:00:39]}  f4 {[%clk 0:00:26]} 24. gxf4 {[%clk 0:00:29]}  exf4 {[%clk 0:00:27]} 25. Qd2 {[%clk 0:00:29]}  Qh4 {[%clk 0:00:18]} 26. Bxf4 {[%clk 0:00:20]}  Qxh3 {[%clk 0:00:16]} 27. Qxa5 {[%clk 0:00:20]}  Qg4+ {[%clk 0:00:13]} 28. Bg3 {[%clk 0:00:20]}  Re7 {[%clk 0:00:09]} 29. Re1 {[%clk 0:00:17]}  h5 {[%clk 0:00:09]} 30. h4 {[%clk 0:00:16]}  Rce8 {[%clk 0:00:05]} 31. Kg2 {[%clk 0:00:15]}  Rxe6 {[%clk 0:00:04]} 32. f3 {[%clk 0:00:09]}  g5 {[%clk 0:00:05]} 33. fxg4 {[%clk 0:00:10]}  R6e7 {[%clk 0:00:01]} 34. Bxd6 {[%clk 0:00:09]}  Rf7 {[%clk 0:00:01]} 35. hxg5 {[%clk 0:00:08]} 1-0


[Site "https://www.chess.com"]

[Event "Titled Tuesday Blitz April 26 Early 2022"]
[White "Zhigalko, Sergei"]
[Black "Asavasaetakul, Chawit"]
[WhiteFideId "13502956"]
[BlackFideId "6204856"]
[WhiteElo "2662"]
[BlackElo "1697"]
[Result "1-0"]
[Round "11"]
[TimeControl "180+1"]
[Date "2022.04.26"]
[WhiteClock "0:00:49"]
[BlackClock "0:01:08"]

1. e4 {[%clk 0:03:00]}  d5 {[%clk 0:02:59]} 2. exd5 {[%clk 0:03:01]}  Nf6 {[%clk 0:03:00]} 3. d4 {[%clk 0:03:01]}  Bg4 {[%clk 0:02:59]} 4. Bb5+ {[%clk 0:03:00]}  Nbd7 {[%clk 0:02:59]} 5. Be2 {[%clk 0:02:58]}  Bxe2 {[%clk 0:02:58]} 6. Qxe2 {[%clk 0:02:59]}  Nxd5 {[%clk 0:02:58]} 7. Nf3 {[%clk 0:03:00]}  e6 {[%clk 0:02:58]} 8. O-O {[%clk 0:02:59]}  Be7 {[%clk 0:02:59]} 9. c4 {[%clk 0:02:59]}  N5b6 {[%clk 0:02:58]} 10. Nc3 {[%clk 0:02:59]}  O-O {[%clk 0:02:58]} 11. Rd1 {[%clk 0:03:00]}  c6 {[%clk 0:02:58]} 12. Bf4 {[%clk 0:03:00]}  Re8 {[%clk 0:02:57]} 13. b3 {[%clk 0:02:57]}  Bf6 {[%clk 0:02:58]} 14. Rd3 {[%clk 0:02:56]}  Nf8 {[%clk 0:02:58]} 15. Rad1 {[%clk 0:02:54]}  Ng6 {[%clk 0:02:58]} 16. Bg3 {[%clk 0:02:54]}  Qe7 {[%clk 0:02:54]} 17. Ne4 {[%clk 0:02:50]}  Rad8 {[%clk 0:02:50]} 18. a4 {[%clk 0:02:30]}  a6 {[%clk 0:02:16]} 19. Nxf6+ {[%clk 0:02:26]}  gxf6 {[%clk 0:02:14]} 20. h4 {[%clk 0:02:20]}  Kh8 {[%clk 0:02:09]} 21. h5 {[%clk 0:02:16]}  Nf8 {[%clk 0:02:10]} 22. Bh4 {[%clk 0:02:04]}  Nfd7 {[%clk 0:02:10]} 23. Ne5 {[%clk 0:02:00]}  Rg8 {[%clk 0:02:10]} 24. Rf3 {[%clk 0:01:42]}  a5 {[%clk 0:01:58]} 25. Rxf6 {[%clk 0:01:12]}  Nxf6 {[%clk 0:01:09]} 26. Qf3 {[%clk 0:01:08]}  Kg7 {[%clk 0:01:09]} 27. h6+ {[%clk 0:00:48]}  Kf8 {[%clk 0:01:08]} 28. Bxf6 {[%clk 0:00:49]} 1-0


[Site "https://www.chess.com"]